bitfinex/quotes_SOLUSD_20250517
["timestamp","ask_amount","ask_price","bid_price","bid_amount"]
[1747497836893,19.8,167.11,167.04,26.0]
[1747497838800,19.8,167.11,167.05,5.98623166]
[1747497840281,19.8,167.11,167.01,7.7289]
[1747497840282,18.64964886,167.1,167.01,6.1028]
[1747497840601,18.64964886,167.08,167.0,26.0]
[1747497840808,5.98551505,167.07,167.0,26.0]
[1747497840983,24.63485686,167.08,167.0,31.98799911]
[1747497841297,142.20542647,167.09,167.0,31.98799911]
[1747497842274,140.68492647,167.09,167.0,31.98799911]
[1747497842600,134.7,167.09,167.0,46.95805899]
[1747497843698,18.64964886,167.08,167.0,31.98799911]
[1747497844204,38.44964886,167.08,167.0,31.98799911]
[1747497844507,38.44964886,167.08,166.97,12.00488367]
[1747497844707,140.68551505,167.07,166.97,12.00488367]
[1747497845276,18.64964886,167.05,166.97,26.0]
[1747497845503,19.8,167.04,166.96,5.98933562]
[1747497846307,5.98694845,167.03,166.96,5.98933562]
[1747497847072,19.8,167.04,166.96,5.98933562]
[1747497847196,19.8,167.04,166.96,46.962982]
[1747497847415,19.8,167.04,166.99,26.0]
[1747497848701,19.8,167.04,167.0,5.98802395]
[1747497850113,19.8,167.04,166.99,31.98826217]
[1747497854194,19.8,167.04,167.0,6.5616]
[1747497854532,134.7,167.06,167.0,6.5616]
[1747497854711,140.68588692,167.06,167.0,6.5616]
[1747497855024,140.68588692,167.06,166.99,33.58886217]
[1747497855399,140.68588692,167.06,166.99,31.98826217]
[1747497856024,134.7,167.06,166.99,31.98826217]
[1747497856398,140.68591863,167.06,166.99,31.98826217]
[1747497857302,19.8,167.08,166.99,46.95921851]
[1747497857794,24.63400436,167.11,166.99,46.95921851]
[1747497857795,18.64964886,167.11,166.99,46.95921851]
[1747497858010,19.8,167.1,166.99,46.95921851]
[1747497858508,19.78,167.1,167.0,1.19716523]
[1747497859709,19.78,167.1,167.04,26.0]
[1747497861106,19.78,167.1,167.05,5.98623166]
[1747497862124,25.76469427,167.1,167.02,26.0]
[1747497862799,25.76469427,167.1,167.02,31.9873069]
[1747497863618,19.78,167.1,167.02,46.95557417]
[1747497872740,19.78,167.1,167.02,48.15261176]
[1747497873047,39.54,167.13,167.02,48.15261176]
[1747497874241,45.52340892,167.13,167.02,48.15261176]
[1747497876933,19.8,167.13,167.02,48.15261176]
[1747497877139,19.7,167.12,167.03,18.64964886]
[1747497877830,157.92,167.14,167.06,26.0]
[1747497878010,19.72,167.14,167.1,26.0]
[1747497879035,19.72,167.14,167.11,5.98408234]
[1747497879412,21.2422,167.18,167.11,5.98408234]
[1747497879625,19.74,167.17,167.11,5.98408234]
[1747497881644,25.7219969,167.17,167.11,5.98408234]
[1747497882226,25.7219969,167.17,167.08,31.98515681]
[1747497882547,18.64964886,167.16,167.08,5.98515681]
[1747497882747,18.64964886,167.16,167.08,31.98515681]
[1747497883070,25.7219969,167.17,167.08,31.98515681]
[1747497884034,25.7219969,167.17,167.08,46.94804883]
[1747497885126,19.74,167.17,167.08,46.94804883]
[1747497886326,25.72196561,167.17,167.08,46.94804883]
[1747497889346,19.74,167.17,167.08,46.94804883]
[1747497889653,25.72202552,167.17,167.08,46.94804883]
[1747497890451,19.74,167.17,167.08,46.94804883]
[1747497890639,25.72194348,167.17,167.08,46.94804883]
[1747497891955,19.74,167.17,167.09,6.5213]
[1747497893158,19.74,167.17,167.1,1.5886]
[1747497893527,25.72175002,167.18,167.1,1.5886]
[1747497893726,19.72,167.17,167.1,1.5886]
[1747497894154,19.72,167.17,167.11,5.98408234]
[1747497894532,19.74,167.18,167.11,5.98408234]
[1747497894733,19.72,167.17,167.11,5.98408234]
[1747497895159,19.72,167.17,167.11,20.94428819]
[1747497898463,19.72,167.17,167.11,5.98408234]
[1747497899856,25.70196014,167.17,167.11,5.98408234]
[1747497903968,25.70196014,167.17,167.1,7.57297716]
[1747497904140,40.65679653,167.17,167.09,6.5213]
[1747497904341,40.65679653,167.17,167.08,5.98500885]
[1747497904541,40.65679653,167.17,167.08,26.0]
[1747497904542,24.61838613,167.16,167.08,26.0]
[1747497904767,4.41869765,167.15,167.08,26.0]
[1747497905561,4.41869765,167.14,167.05,14.14167559]
[1747497905752,5.98336624,167.13,167.05,14.14167559]
[1747497905948,5.98336624,167.13,167.05,38.51317559]
[1747497906863,18.64964886,167.14,167.05,38.51317559]
[1747497907449,4.41938062,167.13,167.05,12.51317559]
[1747497907655,18.64964886,167.12,167.03,5.98683084]
[1747497907946,19.62,167.11,167.03,31.98683084]
[1747497908582,5.98444045,167.1,167.03,31.98683084]
[1747497909753,25.60414671,167.11,167.03,31.98683084]
[1747497911746,18.64964886,167.1,167.02,5.987236]
[1747497911964,18.64964886,167.1,167.01,14.14345031]
[1747497912168,20.18804886,167.1,167.01,12.51495031]
[1747497913054,10.4041755,167.09,167.01,12.51495031]
[1747497914074,5.98479861,167.09,167.01,12.51495031]
[1747497914771,7.5229495,167.1,167.01,38.51495031]
[1747497915082,5.9845495,167.1,167.01,38.51495031]
[1747497915569,25.60415659,167.11,167.01,53.48411383]
[1747497919557,19.62,167.11,167.04,27.6136]
[1747497920657,19.62,167.11,167.05,5.98623166]
[1747497923175,19.54,167.1,167.05,5.98623166]
[1747497923356,157.86,167.12,167.05,5.98623166]
[1747497923554,19.54,167.11,167.05,5.98623166]
[1747497924151,19.52,167.1,167.05,20.95181082]
[1747497924375,19.54,167.14,167.09,26.0]
[1747497924559,19.54,167.14,167.1,26.0]
[1747497924772,19.54,167.14,167.1,27.6324]
[1747497924979,19.54,167.14,167.11,5.98408234]
[1747497925849,25.64134769,167.19,167.11,5.98408234]
[1747497926056,19.52,167.18,167.11,5.98408234]
[1747497928487,19.52,167.18,167.11,20.94428819]
[1747497928851,19.66,167.19,167.11,20.94428819]
[1747497928852,25.64123824,167.19,167.11,20.94428819]
[1747497929058,19.5,167.17,167.11,20.94428819]
[1747497930487,25.64123824,167.19,167.11,20.94428819]
[1747497930665,19.48,167.18,167.11,20.94428819]
[1747497933105,25.46168224,167.18,167.11,5.98408234]
[1747497933384,19.48,167.18,167.11,5.98408234]
[1747497933777,19.66,167.19,167.11,5.98408234]
[1747497933983,19.48,167.18,167.11,20.94428819]
[1747497936476,19.66,167.19,167.11,20.94428819]
[1747497936787,19.58,167.18,167.11,20.94428819]
[1747497938476,5.98021211,167.22,167.14,32.0238]
[1747497938676,19.58,167.21,167.14,32.0238]
[1747497938991,19.58,167.21,167.15,5.98265031]
[1747497939196,5.98025675,167.22,167.15,5.98265031]
[1747497939399,19.56,167.21,167.15,5.98265031]
[1747497943989,19.54,167.21,167.15,20.93927609]
[1747497944182,138.2,167.24,167.15,20.93927609]
[1747497944386,19.56,167.23,167.15,20.93927609]
[1747497945105,19.54,167.22,167.15,20.93927609]
[1747497945404,19.54,167.22,167.15,25.7190522]
[1747497947006,138.2,167.24,167.15,25.7190522]
[1747497947209,19.52,167.23,167.18,26.0]
[1747497948419,19.52,167.23,167.19,5.98121897]
[1747497948594,33.9883489,167.29,167.19,5.98121897]
[1747497948798,19.5,167.28,167.19,5.98121897]
[1747497949716,19.5,167.28,167.22,26.0]
[1747497950908,5.97796607,167.29,167.22,26.0]
[1747497951082,19.48,167.27,167.22,26.0]
[1747497951801,19.48,167.27,167.23,5.97978831]
[1747497952693,19.48,167.27,167.19,26.0]
[1747497952889,25.458411,167.27,167.18,5.98157674]
[1747497953088,18.64964886,167.26,167.18,5.98157674]
[1747497953514,18.64964886,167.26,167.16,5.98229241]
[1747497953814,5.97907324,167.25,167.17,31.98169978]
[1747497955116,19.5,167.24,167.17,46.93653617]
[1747497955492,19.5,167.24,167.18,1.5886]
[1747497955994,19.5,167.24,167.19,20.9342664]
[1747497958203,19.5,167.24,167.22,26.0]
[1747497959297,19.5,167.24,167.21,26.0]
[1747497960314,19.5,167.24,167.21,5.98035222]
[1747497960694,19.5,167.24,167.19,26.0]
[1747497960695,19.5,167.24,167.19,31.98091236]
[1747497961023,25.47951677,167.24,167.17,5.98193455]
[1747497961201,25.47951677,167.24,167.17,31.98193455]
[1747497963926,19.5,167.24,167.17,31.98193455]
[1747497966019,19.5,167.24,167.17,46.93677094]
[1747497967409,25.47943763,167.24,167.17,31.98193455]
[1747497969322,25.47943763,167.24,167.15,5.98265031]
[1747497969617,25.47943763,167.24,167.15,31.98265031]
[1747497970324,5.97943763,167.24,167.15,46.93927609]
[1747497970518,19.51739041,167.23,167.15,46.93927609]
[1747497971425,19.51739041,167.23,167.18,26.0]
[1747497971606,19.56,167.23,167.18,26.0]
[1747497972422,19.56,167.23,167.19,5.98121897]
[1747497972925,19.54,167.23,167.19,5.98121897]
[1747497973229,19.54,167.24,167.19,5.98121897]
[1747497973607,19.54,167.24,167.22,26.0]
[1747497974530,19.48,167.27,167.23,5.97978831]
[1747497974726,19.52,167.26,167.23,5.97978831]
[1747497975820,19.52,167.26,167.22,26.0]
[1747497976343,19.52,167.26,167.21,26.0]
[1747497976505,5.97907324,167.25,167.17,5.98193455]
[1747497976705,5.97907324,167.25,167.17,31.98193455]
[1747497976905,5.97907324,167.25,167.17,5.98193455]
[1747497977405,5.97907324,167.25,167.17,31.98193455]
[1747497981233,18.64964886,167.24,167.16,6.0261]
[1747497981435,4.43476755,167.23,167.16,6.0261]
[1747497982422,18.64964886,167.24,167.16,6.0261]
[1747497982811,5.97978831,167.23,167.16,12.00829171]
[1747497983115,5.97978831,167.23,167.16,5.98219171]
[1747497983306,4.43676338,167.22,167.16,5.98219171]
[1747497984336,4.43676338,167.21,167.16,5.98219171]
[1747497984638,19.46,167.2,167.16,5.98219171]
[1747497987334,19.46,167.2,167.15,26.0]
[1747497987644,25.44089696,167.2,167.14,1.6239]
[1747497987848,25.44089696,167.2,167.13,5.98310824]
[1747497988549,4.43601276,167.19,167.12,26.0]
[1747497988751,4.43601276,167.19,167.09,1.5559]
[1747497988752,4.43601276,167.19,167.1,5.98444045]
[1747497989219,24.69545907,167.18,167.08,6.6614]
[1747497989418,18.64964886,167.16,167.07,31.98542173]
[1747497989726,19.42,167.15,167.07,31.98542173]
[1747497989923,19.42,167.14,167.07,5.98542173]
[1747497990114,19.42,167.14,167.07,31.98542173]
[1747497990536,25.40331669,167.14,167.07,31.98542173]
[1747497991720,19.42,167.14,167.07,31.98542173]
[1747497992241,19.42,167.14,167.07,46.94920936]
[1747497993141,25.40317766,167.14,167.07,31.98542173]
[1747497995317,19.42,167.14,167.07,31.98542173]
[1747497996419,25.40318429,167.14,167.07,31.98542173]
[1747497998650,25.40318429,167.14,167.06,5.98587333]
[1747498002925,19.42,167.14,167.06,5.98587333]
[1747498003243,19.38,167.13,167.06,20.95055667]
[1747498003551,19.4,167.13,167.06,20.95055667]
[1747498004551,19.42,167.17,167.09,26.0]
[1747498004731,19.42,167.12,167.09,26.0]
[1747498005648,19.42,167.12,167.1,5.98444045]
[1747498008154,19.42,167.12,167.09,31.98466923]
[1747498008741,19.46,167.14,167.09,31.98466923]
[1747498009051,19.46,167.15,167.09,31.98466923]
[1747498009433,139.8104,167.18,167.09,31.98466923]
[1747498009634,19.46,167.17,167.09,31.98466923]
[1747498010857,138.2,167.18,167.1,6.0318]
[1747498011033,19.44,167.17,167.13,26.0]
[1747498011435,5.98050355,167.21,167.13,26.0]
[1747498011650,19.44,167.2,167.14,5.98300825]
[1747498012246,27.04975174,167.22,167.14,5.98300825]
[1747498012556,19.44,167.19,167.14,20.94052889]
[1747498013948,19.42,167.2,167.14,20.94052889]
[1747498015448,19.42,167.22,167.17,26.0]
[1747498015844,38.82,167.22,167.17,26.0]
[1747498017264,44.80019272,167.22,167.16,5.98193679]
[1747498017567,44.80019272,167.22,167.13,5.98336624]
[1747498017767,44.80019272,167.22,167.14,26.0]
[1747498018465,44.80019272,167.22,167.14,31.98265504]
[1747498019670,18.64964886,167.21,167.14,26.0]
[1747498020768,5.98086124,167.2,167.11,7.51794828]
[1747498021067,5.98086124,167.2,167.1,6.0318]
[1747498021068,18.64964886,167.19,167.1,12.01613857]
[1747498022262,5.98157674,167.18,167.1,12.01613857]
[1747498025578,5.98229241,167.16,167.1,12.01613857]
[1747498025747,19.32,167.15,167.1,12.01613857]
[1747498027779,19.3,167.16,167.1,12.01613857]
[1747498028779,19.3,167.16,167.1,26.9772397]
[1747498032483,25.28232961,167.16,167.1,12.01613857]
[1747498033553,25.28232961,167.16,167.1,6.0318]
[1747498033770,25.28232961,167.16,167.09,31.98466473]
[1747498033969,25.28232961,167.16,167.08,5.98507714]
[1747498034186,4.42821422,167.15,167.08,5.98507714]
[1747498034974,25.28232961,167.16,167.08,5.98507714]
[1747498036081,19.3,167.16,167.08,5.98507714]
[1747498036460,5.98170481,167.18,167.08,20.94796916]
[1747498036777,19.28,167.17,167.08,20.94796916]
[1747498036975,5.98170481,167.18,167.08,20.94796916]
[1747498037182,19.28,167.16,167.08,20.94796916]
[1747498037996,19.36,167.19,167.12,5.98372426]
[1747498038182,19.28,167.16,167.12,5.98372426]
[1747498054304,19.28,167.16,167.11,31.98394349]
[1747498054484,25.26244528,167.16,167.11,26.0]
[1747498054878,25.26244528,167.16,167.09,26.0]
[1747498055079,18.64964886,167.15,167.07,31.98551505]
[1747498055297,18.64964886,167.15,167.06,12.07866292]
[1747498055485,6.09887769,167.14,167.06,5.98576292]
[1747498056201,19.14,167.13,167.06,5.98576292]
[1747498056400,25.1234623,167.13,167.06,5.98576292]
[1747498056589,4.43527769,167.12,167.06,5.98576292]
[1747498057205,25.1234623,167.13,167.06,5.98576292]
[1747498060002,19.14,167.13,167.06,5.98576292]
[1747498060303,19.14,167.12,167.06,20.95044626]
[1747498060480,19.14,167.12,167.09,26.0]
[1747498061885,19.14,167.12,167.09,31.98477929]
[1747498070614,19.14,167.12,167.09,5.98477929]
[1747498072725,19.14,167.12,167.08,5.98515681]
[1747498074216,25.12373506,167.12,167.05,26.0]
[1747498074924,25.12373506,167.12,167.06,31.98587333]
[1747498082135,25.12373506,167.12,167.04,31.98659003]
[1747498082310,44.64964886,167.11,166.99,5.98838253]
[1747498082510,18.64964886,167.09,166.99,5.98838253]
[1747498082706,19.14,167.08,166.99,5.98838253]
[1747498083218,4.43264735,167.07,166.99,5.98838253]
[1747498083402,19.14,167.06,166.99,5.98838253]
[1747498083607,4.43264735,167.07,167.02,26.0]
[1747498084130,19.14,167.08,167.02,26.0]
[1747498085530,19.14,167.08,167.03,5.98694845]
[1747498086011,19.14,167.08,167.03,20.95431958]
[1747498086436,19.14,167.08,167.05,1.618]
[1747498088126,19.14,167.08,167.06,5.98587333]
[1747498089213,19.14,167.11,167.06,20.95055667]
[1747498093329,19.14,167.11,167.06,5.98587333]
[1747498095933,19.14,167.11,167.06,20.95055667]
[1747498100648,19.14,167.15,167.06,20.95055667]
[1747498100855,19.14,167.14,167.06,20.95055667]
[1747498102329,19.14,167.15,167.09,26.0]
[1747498104854,19.14,167.15,167.1,5.98444045]
[1747498106025,19.14,167.16,167.1,27.48984158]
[1747498106430,157.34,167.19,167.1,27.48984158]
[1747498106645,19.14,167.18,167.1,27.48984158]
[1747498109557,157.34,167.19,167.13,26.0]
[1747498109814,19.14,167.18,167.13,26.0]
[1747498110427,157.34,167.19,167.13,26.0]
[1747498110752,176.48,167.19,167.13,26.0]
[1747498110956,38.28,167.19,167.13,26.0]
[1747498111766,38.28,167.19,167.14,5.98300825]
[1747498112729,19.14,167.18,167.14,5.98300825]
[1747498117380,38.28,167.19,167.14,5.98300825]
[1747498117873,19.14,167.19,167.14,5.98300825]
[1747498119372,19.14,167.19,167.14,20.94052889]
[1747498120178,19.12,167.24,167.14,20.94052889]
[1747498120475,19.14,167.23,167.18,26.0]
[1747498121456,19.14,167.23,167.19,5.98121897]
[1747498124768,19.12,167.24,167.19,5.98121897]
[1747498124975,38.24,167.24,167.19,5.98121897]
[1747498125175,138.2,167.28,167.22,26.0]
[1747498125371,19.12,167.27,167.22,26.0]
[1747498126394,19.12,167.27,167.23,5.97978831]
[1747498126958,19.12,167.27,167.17,2.82667593]
[1747498126959,19.12,167.27,167.17,1.6306]
[1747498127180,19.12,167.27,167.19,26.0]
[1747498127578,19.12,167.27,167.21,26.0]
[1747498128183,25.09849027,167.27,167.21,26.0]
[1747498128382,25.09849027,167.27,167.21,31.98016104]
[1747498129065,5.97849027,167.27,167.21,31.98016104]
[1747498129384,19.12,167.26,167.21,31.98016104]
[1747498129555,25.09896503,167.26,167.21,26.0]
[1747498129752,25.09896503,167.26,167.2,5.98082188]
[1747498130360,19.12,167.26,167.2,5.98082188]
[1747498131683,19.12,167.26,167.19,46.93403528]
[1747498131873,19.12,167.27,167.19,46.93403528]
[1747498133167,5.97777985,167.29,167.19,46.93403528]
[1747498133468,19.12,167.28,167.19,46.93403528]
[1747498133788,19.12,167.28,167.23,5.97978831]
[1747498136174,25.09804652,167.28,167.23,5.97978831]
[1747498137596,19.12,167.27,167.23,5.97978831]
[1747498139090,25.09849836,167.27,167.19,26.0]
[1747498140190,25.09849836,167.27,167.2,5.98086124]
[1747498142377,25.09849836,167.27,167.19,31.98116623]
[1747498144699,5.97800095,167.28,167.19,31.98116623]
[1747498144895,19.12,167.27,167.19,48.13014258]
[1747498145399,19.12,167.28,167.19,48.13014258]
[1747498145902,19.12,167.28,167.23,26.0]
[1747498146788,19.1,167.29,167.24,5.97943075]
[1747498146989,38.22,167.29,167.24,5.97943075]
[1747498148878,19.12,167.3,167.24,5.97943075]
[1747498149798,19.12,167.3,167.24,20.92800764]
[1747498150806,5.97662565,167.32,167.24,20.92800764]
[1747498150986,19.12,167.31,167.24,5.97943075]
[1747498153495,25.09693477,167.31,167.24,5.97943075]
[1747498155604,19.12,167.31,167.24,5.97943075]
[1747498155790,20.6415,167.34,167.24,5.97943075]
[1747498155991,19.1,167.34,167.27,32.2363]
[1747498156209,19.1,167.33,167.27,32.2363]
[1747498156797,19.1,167.35,167.28,20.92300334]
[1747498157101,19.1,167.36,167.29,1.5873]
[1747498157297,138.2,167.38,167.31,26.0]
[1747498157498,19.1,167.37,167.31,26.0]
[1747498158911,19.1,167.37,167.32,5.97657183]
[1747498159608,5.97449971,167.38,167.32,5.97657183]
[1747498159809,19.1,167.37,167.32,5.97657183]
[1747498161901,19.1,167.37,167.32,20.91800142]
[1747498162096,38.2,167.39,167.35,26.0]
[1747498162414,19.1,167.39,167.35,26.0]
[1747498162785,19.1,167.4,167.35,26.0]
[1747498163608,19.1,167.4,167.36,5.9751434]
[1747498163912,138.2,167.42,167.36,5.9751434]
[1747498164106,19.1,167.41,167.36,5.9751434]
[1747498165494,157.3,167.42,167.36,5.9751434]
[1747498166523,19.1,167.43,167.39,26.0]
[1747498167519,19.1,167.43,167.39,31.97375474]
[1747498168125,19.1,167.44,167.39,31.97375474]
[1747498169725,25.0723559,167.44,167.34,2.73190611]
[1747498169909,25.0723559,167.44,167.36,26.0]
[1747498170424,25.0723559,167.44,167.34,1.5371]
[1747498170725,25.0723559,167.44,167.36,26.0]
[1747498170926,25.0723559,167.44,167.36,31.97503931]
[1747498173015,40.00307735,167.44,167.36,26.0]
[1747498174409,5.9723559,167.44,167.36,31.97513176]
[1747498174729,19.08,167.43,167.36,31.97513176]
[1747498176326,25.05266681,167.43,167.36,31.97513176]
[1747498178939,19.08,167.43,167.36,31.97513176]
[1747498179313,19.08,167.43,167.36,46.91299026]
[1747498179931,25.05218649,167.45,167.36,46.91299026]
[1747498180104,19.08,167.44,167.36,46.91299026]
[1747498182036,19.08,167.44,167.37,1.6079]
[1747498182616,19.08,167.44,167.38,6.0748]
[1747498183230,138.2,167.47,167.41,26.0]
[1747498183435,19.08,167.5,167.42,5.97300203]
[1747498183614,19.08,167.49,167.42,5.97300203]
[1747498184319,25.05070198,167.49,167.42,5.97300203]
[1747498184528,25.05070198,167.49,167.41,31.97324369]
[1747498187135,19.08,167.49,167.41,46.90664073]
[1747498190325,38.16,167.5,167.44,26.0]
[1747498190939,38.16,167.5,167.45,5.97193191]
[1747498191735,19.08,167.5,167.45,5.97193191]
[1747498191927,38.16,167.5,167.45,5.97193191]
[1747498192919,44.13024158,167.5,167.45,5.97193191]
[1747498195422,38.16,167.5,167.45,5.97193191]
[1747498197534,19.08,167.5,167.45,5.97193191]
[1747498197733,19.06,167.49,167.45,5.97193191]
[1747498206858,5.9695599,167.52,167.45,5.97193191]
[1747498207048,19.06,167.5,167.45,5.97193191]
[1747498220259,25.03017972,167.5,167.45,5.97193191]
[1747498220768,19.06,167.5,167.4,23.19720742]
[1747498221076,5.9705057,167.49,167.43,26.0]
[1747498221758,4.4351765,167.48,167.43,26.0]
[1747498222165,5.97121872,167.47,167.43,26.0]
[1747498223375,5.9705057,167.49,167.43,26.0]
[1747498225056,5.97121872,167.47,167.43,26.0]
[1747498226374,5.9705057,167.49,167.43,26.0]
[1747498226772,4.44170857,167.48,167.43,26.0]
[1747498227670,9.3734172,167.49,167.43,26.0]
[1747498229058,4.44473364,167.48,167.43,26.0]
[1747498229260,4.444891,167.47,167.43,26.0]
[1747498230276,10.41613949,167.47,167.43,26.0]
[1747498230573,4.444891,167.46,167.43,26.0]
[1747498231875,5.97161507,167.46,167.4,32.6392]
[1747498232057,5.97161507,167.46,167.4,26.0]
[1747498232878,5.97121872,167.47,167.4,31.97365457]
[1747498233168,4.44395633,167.45,167.4,31.97365457]
[1747498234050,5.9717741,167.46,167.4,31.97365457]
[1747498234875,5.97121872,167.47,167.4,31.97365457]
[1747498235672,18.64964886,167.46,167.37,5.97464777]
[1747498235872,4.44152837,167.45,167.37,5.97464777]
[1747498236063,4.44152837,167.45,167.37,31.97464777]
[1747498236064,19.04,167.44,167.37,31.97464777]
[1747498237162,5.97264528,167.43,167.37,31.97464777]
[1747498237579,5.97264528,167.43,167.37,26.0]
[1747498238776,5.97335881,167.41,167.37,26.0]
[1747498239178,5.97335881,167.41,167.35,31.97543312]
[1747498239582,5.97335881,167.41,167.35,26.0]
[1747498240292,5.97335881,167.41,167.35,31.97546199]
[1747498240672,5.97264528,167.43,167.35,31.97546199]
[1747498242890,10.40329825,167.42,167.35,31.97546199]
[1747498243595,5.97315678,167.42,167.35,31.97546199]
[1747498243776,5.97264528,167.43,167.35,31.97546199]
[1747498251001,19.04,167.42,167.35,31.97546199]
[1747498256320,25.01302964,167.42,167.35,31.97546199]
[1747498262303,26.63582964,167.42,167.35,26.0]
[1747498262508,26.63582964,167.42,167.35,31.9754012]
[1747498262813,4.429751,167.41,167.35,31.9754012]
[1747498263689,10.40340814,167.41,167.35,31.9754012]
[1747498263894,5.97365714,167.41,167.35,31.9754012]
[1747498264507,25.01308043,167.42,167.35,31.9754012]
[1747498264706,19.04,167.42,167.35,31.9754012]
[1747498265311,9.37373812,167.44,167.35,31.9754012]
[1747498265513,157.24,167.45,167.38,32.4808]
[1747498265820,157.24,167.45,167.39,5.97407252]
[1747498266614,138.2,167.45,167.39,5.97407252]
[1747498266925,19.04,167.44,167.39,5.97407252]
[1747498267994,138.2,167.45,167.39,5.97407252]
[1747498268195,19.04,167.44,167.39,5.97407252]
[1747498269607,25.01231361,167.44,167.39,5.97407252]
[1747498270316,19.04,167.44,167.39,5.97407252]
[1747498272725,25.01231062,167.44,167.39,5.97407252]
[1747498273627,25.01231062,167.44,167.38,6.4808]
[1747498273818,25.01231062,167.44,167.37,1.5149]
[1747498274012,19.04,167.44,167.37,33.48943763]
[1747498274595,4.43791077,167.43,167.37,33.48943763]
[1747498275426,25.01231578,167.44,167.37,33.48943763]
[1747498275809,19.04,167.44,167.37,33.48943763]
[1747498276601,19.04,167.44,167.37,48.42640363]
[1747498277331,4.44103562,167.43,167.37,48.42640363]
[1747498278128,19.04,167.44,167.37,48.42640363]
[1747498279904,4.44285675,167.43,167.37,48.42640363]
[1747498281136,25.01229833,167.44,167.37,48.42640363]
[1747498282836,4.44322963,167.43,167.37,48.42640363]
[1747498283514,4.44322963,167.43,167.41,26.0]
[1747498283913,138.2,167.45,167.41,26.0]
[1747498284113,137.7,167.45,167.41,26.0]
[1747498284922,137.7,167.45,167.42,5.97300203]
[1747498286429,19.04,167.47,167.42,5.97300203]
[1747498287016,5.97109735,167.48,167.42,5.97300203]
[1747498287216,19.04,167.47,167.42,5.97300203]
[1747498288241,5.9705057,167.49,167.42,5.97300203]
[1747498288435,19.04,167.47,167.42,5.97300203]
[1747498288815,19.04,167.47,167.42,26.0]
[1747498289945,10.41074793,167.46,167.39,31.97407252]
[1747498290938,4.43917263,167.45,167.39,31.97407252]
[1747498291563,10.41123169,167.45,167.38,12.61539535]
[1747498291857,4.43917263,167.44,167.38,12.61539535]
[1747498292565,4.43917263,167.43,167.38,12.61539535]
[1747498293831,5.9715753,167.46,167.38,12.61539535]
[1747498294842,14.85463977,167.45,167.38,12.61539535]
[1747498295354,4.44130253,167.44,167.38,12.61539535]
[1747498296457,4.44130253,167.43,167.38,12.61539535]
[1747498296956,47.44054561,167.47,167.38,12.61539535]
[1747498297155,2.22021958,167.46,167.38,12.61539535]
[1747498297360,6.66070874,167.46,167.38,12.61539535]
[1747498297973,6.66070874,167.46,167.41,26.0]
[1747498298270,4.44068546,167.45,167.41,26.0]
[1747498298570,4.44068546,167.45,167.42,5.97300203]
[1747498298869,38.04,167.47,167.42,5.97300203]
[1747498299243,19.02,167.47,167.42,5.97300203]
[1747498299464,38.04,167.47,167.42,5.97300203]
[1747498304174,19.02,167.47,167.42,5.97300203]
[1747498304475,19.02,167.47,167.42,20.9055071]
[1747498304674,139.2064,167.51,167.45,26.0]
[1747498304858,23.45673447,167.5,167.45,26.0]
[1747498305670,19.02,167.5,167.45,26.0]
[1747498306562,19.02,167.5,167.46,5.9715753]
[1747498306761,137.7,167.51,167.46,5.9715753]
[1747498307074,156.72,167.51,167.46,5.9715753]
[1747498308573,162.68985575,167.51,167.46,5.9715753]
[1747498308878,156.72,167.51,167.46,5.9715753]
[1747498310071,4.43387613,167.5,167.46,5.9715753]
[1747498311061,156.72,167.51,167.46,5.9715753]
[1747498314884,137.7,167.51,167.46,5.9715753]
[1747498315063,19.02,167.5,167.45,31.97186059]
[1747498315263,19.02,167.5,167.45,26.0]
[1747498316890,4.43097651,167.49,167.45,26.0]
[1747498317067,10.40151883,167.49,167.43,31.97251254]
[1747498317379,10.40151883,167.49,167.43,26.0]
[1747498317568,10.40151883,167.49,167.41,5.97326974]